[Event "Allsvenskan Div I 3 2021/2022: SS Manhem - Linköpings ASS"]
[Site "Schackcentrum, Vegatan 20, Gothenburg, Sweden"]
[Date "2022.04.09"]
[Round "1.7"]
[White "Wastlund, Johan"]
[Black "Strom-Engdahl, Alexander"]
[Result "1/2-1/2"]
[TimeControl "90 minutes for 40 moves + 30 minutes for the rest of the game + 30 seconds per move from move one."]
[WhiteFideId "1740318"]
[BlackFideId "1741586"]
[WhiteElo "1936"]
[BlackElo "2023"]

1. e4 {[%clk 01:30:54]} {[%emt 00:00:05]} e5 {[%clk 01:30:51]} {[%emt
00:00:08]} 2. Nf3 {[%clk 01:31:17]} {[%emt 00:00:08]} Nf6 {[%clk 01:31:12]}
{[%emt 00:00:08]} 3. Nxe5 {[%clk 01:31:18]} {[%emt 00:00:29]} d6 {[%clk
01:31:20]} {[%emt 00:00:22]} 4. Nf3 {[%clk 01:31:41]} {[%emt 00:00:07]} Nxe4
{[%clk 01:31:43]} {[%emt 00:00:07]} 5. d4 {[%clk 01:31:04]} {[%emt 00:01:08]}
d5 {[%clk 01:32:08]} {[%emt 00:00:06]} 6. Bd3 {[%clk 01:30:03]} {[%emt
00:01:30]} Bd6 {[%clk 01:32:13]} {[%emt 00:00:24]} 7. O-O {[%clk 01:27:21]}
{[%emt 00:03:13]} O-O {[%clk 01:32:34]} {[%emt 00:00:09]} 8. c4 {[%clk
01:25:26]} {[%emt 00:02:25]} c6 {[%clk 01:32:48]} {[%emt 00:00:17]} 9. Nc3
{[%clk 01:21:08]} {[%emt 00:04:48]} Nxc3 {[%clk 01:33:02]} {[%emt 00:00:15]} 10.
bxc3 {[%clk 01:21:31]} {[%emt 00:00:07]} Bg4 {[%clk 01:33:16]} {[%emt
00:00:15]} 11. cxd5 {[%clk 01:10:38]} {[%emt 00:11:24]} cxd5 {[%clk 01:33:34]}
{[%emt 00:00:12]} 12. Re1 {[%clk 01:09:06]} {[%emt 00:02:03]} Nc6 {[%clk
01:31:11]} {[%emt 00:02:53]} 13. Rb1 {[%clk 01:04:13]} {[%emt 00:05:22]} b6
{[%clk 01:31:17]} {[%emt 00:00:24]} 14. Be2 {[%clk 00:55:17]} {[%emt 00:09:26]}
Re8 {[%clk 01:30:20]} {[%emt 00:01:26]} 15. Be3 {[%clk 00:48:26]} {[%emt
00:07:22]} Rc8 {[%clk 01:25:25]} {[%emt 00:05:24]} 16. h3 {[%clk 00:45:19]}
{[%emt 00:03:39]} Bh5 {[%clk 01:24:30]} {[%emt 00:01:24]} 17. Qd2 {[%clk
00:39:58]} {[%emt 00:05:51]} Na5 {[%clk 01:21:23]} {[%emt 00:03:36]} 18. Rbc1
{[%clk 00:32:07]} {[%emt 00:08:22]} Nc4 {[%clk 01:19:44]} {[%emt 00:02:09]} 19.
Bxc4 {[%clk 00:30:14]} {[%emt 00:02:23]} Rxc4 {[%clk 01:19:54]} {[%emt
00:00:20]} 20. Ne5 {[%clk 00:24:43]} {[%emt 00:06:02]} Rc8 {[%clk 01:16:07]}
{[%emt 00:04:15]} 21. Bf4 {[%clk 00:21:12]} {[%emt 00:04:02]} f6 {[%clk
01:05:02]} {[%emt 00:11:35]} 22. Nd3 {[%clk 00:21:04]} {[%emt 00:00:37]} Rxe1+
{[%clk 00:58:34]} {[%emt 00:06:59]} 23. Rxe1 {[%clk 00:18:25]} {[%emt
00:03:10]} Bf7 {[%clk 00:58:47]} {[%emt 00:00:16]} 24. Bxd6 {[%clk 00:13:56]}
{[%emt 00:04:59]} Qxd6 {[%clk 00:59:08]} {[%emt 00:00:09]} 25. Re3 {[%clk
00:12:43]} {[%emt 00:01:43]} Qc7 {[%clk 00:55:23]} {[%emt 00:04:15]} 1/2-1/2

[Event "Allsvenskan Div I 3 2021/2022: SS Manhem - Linköpings ASS"]
[Site "Schackcentrum, Vegatan 20, Gothenburg, Sweden"]
[Date "2022.04.09"]
[Round "1.8"]
[White "Lindholm, Gustav"]
[Black "Pettersson, Borje"]
[Result "0-1"]
[TimeControl "90 minutes for 40 moves + 30 minutes for the rest of the game + 30 seconds per move from move one."]
[WhiteFideId "1736515"]
[BlackFideId "1701894"]
[WhiteElo "1971"]
[BlackElo "1904"]

1. d4 {[%clk 01:30:56]} {[%emt 00:00:03]} c6 {[%clk 01:30:43]} {[%emt
00:00:17]} 2. c4 {[%clk 01:31:21]} {[%emt 00:00:06]} Nf6 {[%clk 01:30:55]}
{[%emt 00:00:18]} 3. Nc3 {[%clk 01:31:29]} {[%emt 00:00:22]} d5 {[%clk
01:31:15]} {[%emt 00:00:09]} 4. Nf3 {[%clk 01:31:56]} {[%emt 00:00:05]} dxc4
{[%clk 01:31:00]} {[%emt 00:00:43]} 5. a4 {[%clk 01:32:21]} {[%emt 00:00:07]}
Bf5 {[%clk 01:31:08]} {[%emt 00:00:21]} 6. e3 {[%clk 01:32:44]} {[%emt
00:00:07]} e6 {[%clk 01:28:55]} {[%emt 00:02:43]} 7. Bxc4 {[%clk 01:33:06]}
{[%emt 00:00:08]} Bb4 {[%clk 01:27:01]} {[%emt 00:02:24]} 8. O-O {[%clk
01:32:54]} {[%emt 00:00:42]} O-O {[%clk 01:25:48]} {[%emt 00:01:42]} 9. Qe2
{[%clk 01:31:51]} {[%emt 00:01:32]} h6 {[%clk 01:14:01]} {[%emt 00:12:19]} 10.
e4 {[%clk 01:26:34]} {[%emt 00:05:47]} Bg4 {[%clk 01:09:51]} {[%emt 00:04:40]}
11. e5 {[%clk 01:16:30]} {[%emt 00:10:34]} Nd5 {[%clk 01:08:41]} {[%emt
00:01:39]} 12. Nxd5 {[%clk 01:16:20]} {[%emt 00:00:41]} cxd5 {[%clk 01:08:11]}
{[%emt 00:00:59]} 13. Bd3 {[%clk 01:16:35]} {[%emt 00:00:16]} Nc6 {[%clk
01:06:00]} {[%emt 00:02:39]} 14. Be3 {[%clk 01:14:45]} {[%emt 00:02:22]} f6
{[%clk 01:02:05]} {[%emt 00:04:24]} 15. h3 {[%clk 00:57:33]} {[%emt 00:17:43]}
Bxf3 {[%clk 00:59:45]} {[%emt 00:02:50]} 16. Qxf3 {[%clk 00:57:51]} {[%emt
00:00:13]} fxe5 {[%clk 00:56:34]} {[%emt 00:03:39]} 17. Qg4 {[%clk 00:50:49]}
{[%emt 00:07:32]} Qe7 {[%clk 00:25:39]} {[%emt 00:31:25]} 18. Bxh6 {[%clk
00:47:43]} {[%emt 00:03:37]} e4 {[%clk 00:21:33]} {[%emt 00:04:35]} 19. Bg5
{[%clk 00:45:38]} {[%emt 00:02:37]} Qf7 {[%clk 00:21:40]} {[%emt 00:00:20]} 20.
Bb5 {[%clk 00:42:00]} {[%emt 00:04:10]} Nxd4 {[%clk 00:19:58]} {[%emt
00:02:12]} 21. f3 {[%clk 00:42:13]} {[%emt 00:00:17]} Nxb5 {[%clk 00:19:25]}
{[%emt 00:01:02]} 22. axb5 {[%clk 00:40:10]} {[%emt 00:02:32]} Bc5+ {[%clk
00:19:29]} {[%emt 00:00:26]} 23. Kh1 {[%clk 00:40:39]} {[%emt 00:00:02]} e3
{[%clk 00:19:02]} {[%emt 00:00:56]} 24. b4 {[%clk 00:41:06]} {[%emt 00:00:03]}
Bb6 {[%clk 00:18:48]} {[%emt 00:00:43]} 25. h4 {[%clk 00:41:00]} {[%emt
00:00:37]} Rac8 {[%clk 00:16:55]} {[%emt 00:02:22]} 26. Rac1 {[%clk 00:40:41]}
{[%emt 00:00:51]} Qf5 {[%emt 00:06:09]} 27. Qg3 {[%clk 00:40:59]} {[%emt
00:00:09]} d4 {[%clk 00:10:44]} {[%emt 00:01:05]} 28. h5 {[%clk 00:39:05]}
{[%emt 00:02:24]} d3 {[%clk 00:06:51]} {[%emt 00:04:22]} 29. h6 {[%clk
00:39:29]} {[%emt 00:00:06]} d2 {[%clk 00:06:31]} {[%emt 00:00:50]} 30. hxg7
{[%clk 00:39:49]} {[%emt 00:00:10]} Qh7+ {[%clk 00:04:56]} {[%emt 00:02:05]} 31.
Bh4 {[%clk 00:39:30]} {[%emt 00:00:50]} Qxg7 {[%clk 00:04:10]} {[%emt
00:01:15]} 32. Rxc8 {[%clk 00:39:34]} {[%emt 00:00:26]} Rxc8 {[%clk 00:04:26]}
{[%emt 00:00:14]} 33. Qd6 {[%clk 00:39:24]} {[%emt 00:00:39]} Qh6 {[%clk
00:03:57]} {[%emt 00:01:00]} 34. Qg3+ {[%clk 00:37:33]} {[%emt 00:02:21]} Kf7
{[%clk 00:03:51]} {[%emt 00:00:35]} 35. Rd1 {[%clk 00:34:28]} {[%emt 00:03:36]}
Rh8 {[%clk 00:03:46]} {[%emt 00:00:34]} 0-1